fUSD/lending_fUSD_20241008
["ID","MTS","AMOUNT","RATE_DAILY","PERIOD"]
[340052087,1728402646405,-3771.095787,0.0002002,2]
[340052088,1728402646414,-153.47,0.00020274,2]
[340052089,1728402646424,-150.0,0.00020332,2]
[340052090,1728402646434,-173.12,0.000204,2]
[340052091,1728402646443,-250.52307972,0.000204,2]
[340052092,1728402646453,-3327.44638991,0.00020411,2]
[340052093,1728402646463,-174.52,0.00020548,2]
[340052094,1728402646472,-150.0,0.00020764,2]
[340052095,1728402646481,-142473.08984763,0.00021,2]
[340052096,1728402646492,-151.0,0.00021,2]
[340052097,1728402646502,-927.818187,0.00021,2]
[340052098,1728402646512,-927.818187,0.00021,2]
[340052099,1728402646521,-151.0,0.00021,2]
[340052100,1728402646531,-151.0,0.00021,2]
[340052101,1728402646540,-151.0,0.00021,2]
[340052102,1728402646550,-151.0,0.00021,2]
[340052104,1728402646559,-151.0,0.00021,2]
[340052106,1728402646569,-254.214006,0.00021,2]
[340052113,1728402646579,-254.214006,0.00021,2]
[340052115,1728402646645,-151.0,0.00021,2]
[340052117,1728402646655,-496.188665,0.00021,2]
[340052119,1728402646664,-496.188665,0.00021,2]
[340052121,1728402646674,-151.0,0.00021,2]
[340052123,1728402646684,-163.629079,0.00021,2]
[340052125,1728402646693,-163.629079,0.00021,2]
[340052126,1728402646702,-151.0,0.00021,2]
[340052128,1728402646712,-151.0,0.00021,2]
[340052130,1728402646722,-151.0,0.00021,2]
[340052132,1728402646732,-256.360693,0.00021,2]
[340052134,1728402646742,-256.360693,0.00021,2]
[340052136,1728402646753,-341.224694,0.00021,2]
[340052138,1728402646763,-151.0,0.00021,2]
[340052140,1728402646772,-341.224694,0.00021,2]
[340052142,1728402646781,-151.0,0.00021,2]
[340052144,1728402646791,-151.0,0.00021,2]
[340052147,1728402646808,-264.601475,0.00021,2]
[340052149,1728402646821,-151.0,0.00021,2]
[340052151,1728402646831,-151.0,0.00021,2]
[340052153,1728402646840,-151.0,0.00021,2]
[340052155,1728402646850,-151.0,0.00021,2]
[340052157,1728402646862,-151.0,0.00021,2]
[340052159,1728402646871,-151.0,0.00021,2]
[340052161,1728402646882,-151.0,0.00021,2]
[340052164,1728402646893,-151.0,0.00021,2]
[340052166,1728402646903,-151.0,0.00021,2]
[340052168,1728402646912,-151.0,0.00021,2]
[340052169,1728402646922,-151.0,0.00021,2]
[340052172,1728402646933,-151.0,0.00021,2]
[340052174,1728402646943,-151.0,0.00021,2]
[340052176,1728402646953,-249.231068,0.00021,2]
[340052178,1728402646962,-151.0,0.00021,2]
[340052180,1728402646974,-491.420714,0.00021,2]
[340052181,1728402646984,-491.420714,0.00021,2]
[340052182,1728402646993,-1574.273559,0.00021,2]
[340052183,1728402647003,-1574.273559,0.00021,2]
[340052184,1728402647013,-150.0,0.00021197,2]
[340052185,1728402647023,-940.2,0.00021321,2]
[340052186,1728402647033,-150.0,0.00021629,2]
[340052187,1728402647043,-735.89,0.00021881,2]
[340052188,1728402647053,-800.63,0.00021918,2]
[340052189,1728402647063,-151.0,0.00021918,2]
[340052190,1728402647081,-151.0,0.00021918,2]
[340052191,1728402647108,-151.0,0.00021918,2]
[340052192,1728402647134,-151.0,0.00021918,2]
[340052193,1728402647154,-151.0,0.00021918,2]
[340052194,1728402647178,-151.0,0.00021918,2]
[340052195,1728402647200,-160.0,0.00022,2]
[340052196,1728402647219,-150.0,0.00022062,2]
[340052197,1728402647237,-221.17,0.00022137,30]
[340052198,1728402647252,-150.0,0.00022494,2]
[340052199,1728402647271,-1069.58,0.00022557,2]
[340052200,1728402647291,-150.0,0.00022927,2]
[340052201,1728402647307,-150.0,0.0002299,2]
[340052202,1728402647322,-164.0,0.00023,2]
[340052203,1728402647341,-313.72,0.00023,2]
[340052204,1728402647358,-1004.9,0.00023,2]
[340052205,1728402647374,-150.0,0.0002336,2]
[340052206,1728402647387,-228.0,0.00023733,2]
[340052207,1728402647404,-150.0,0.00023792,2]
[340052208,1728402647422,-984.18847646,0.00023922,2]
[340052209,1728402647439,-152.0,0.00023978,3]
[340052210,1728402647454,-200.0,0.00024,120]
[340052211,1728402647469,-153.47,0.0002411,2]
[340052212,1728402647484,-735.89,0.00024144,2]
[340052213,1728402647500,-150.0,0.00024225,2]
[340052214,1728402647515,-160.13,0.00024225,2]
[340052215,1728402647529,-599.816866,0.00024355,2]
[340052216,1728402647543,-173.12,0.000246,7]
[340052217,1728402647558,-1004.9,0.0002464,2]
[340052218,1728402647572,-150.0,0.00024657,2]
[340052219,1728402647587,-221.17,0.00024721,30]
[340052220,1728402647600,-8759.27029097,0.000249,10]
[340052221,1728402647617,-158.59,0.00024962,2]
[340052222,1728402647632,-3877.13560437,0.00025,5]
[340052223,1728402647647,-164.0,0.00025,2]
[340052224,1728402647661,-151.0,0.00025,7]
[340052225,1728402647677,-151.0,0.00025,7]
[340052226,1728402647692,-1057.013317,0.00025,7]
[340052227,1728402647706,-1057.013317,0.00025,7]
[340052228,1728402647721,-151.0,0.00025,7]
[340052229,1728402647735,-151.0,0.00025,7]
[340052230,1728402647749,-151.0,0.00025,7]
[340052231,1728402647763,-151.0,0.00025,7]
[340052232,1728402647778,-151.0,0.00025,7]
[340052233,1728402647792,-151.0,0.00025,7]
[340052234,1728402647881,-151.0,0.00025,7]
[340052235,1728402647891,-151.0,0.00025,7]
[340052236,1728402647901,-151.0,0.00025,7]
[340052237,1728402647910,-151.0,0.00025,7]
[340052238,1728402647920,-151.0,0.00025,7]
[340052239,1728402647930,-151.0,0.00025,7]
[340052240,1728402647940,-151.0,0.00025,7]
[340052241,1728402647949,-162.15929318,0.0002509,120]
[340052242,1728402647960,-3327.44638991,0.00025167,2]
[340052243,1728402647975,-152.0,0.00025279,4]
[340052244,1728402647986,-201.0,0.000253,10]
[340052245,1728402647999,-218.0,0.00026,120]
[340052246,1728402648008,-1004.9,0.0002628,2]
[340052247,1728402648017,-735.89,0.00026408,2]
[340052248,1728402648027,-152.0,0.0002658,5]
[340052249,1728402648036,-800.0,0.00026986,120]
[340052250,1728402648046,-800.0,0.00026986,120]
[340052251,1728402648055,-800.0,0.00026986,120]
[340052252,1728402648065,-800.0,0.00026986,120]
[340052253,1728402648075,-500.0,0.00027,2]
[340052254,1728402648086,-434.92806461,0.00027,120]
[340052255,1728402648096,-263.34538,0.00027,7]
[340052256,1728402648106,-263.34538,0.00027,7]
[340052257,1728402648119,-383.646035,0.00027,7]
[340052258,1728402648129,-383.646035,0.00027,7]
[340052259,1728402648139,-151.0,0.00027,7]
[340052260,1728402648149,-151.0,0.00027,7]
[340052261,1728402648159,-340.836957,0.00027,7]
[340052262,1728402648168,-340.836957,0.00027,7]
[340052263,1728402648178,-152.975327,0.00027,7]
[340052264,1728402648188,-151.0,0.00027,7]
[340052265,1728402648199,-151.0,0.00027,7]
[340052266,1728402648209,-162.483175,0.00027,7]
[340052267,1728402648219,-2000.0,0.00027,2]
[340052268,1728402648230,-151.0,0.00027,7]
[340052269,1728402648240,-221.866488,0.00027,7]
[340052270,1728402648252,-221.866488,0.00027,7]
[340052271,1728402648262,-2010.888148,0.0002701,2]
[340052272,1728402648272,-221.17,0.00027305,30]
[340052273,1728402648282,-375.0,0.00027397,2]
[340052274,1728402648292,-151.0,0.00027397,7]
[340052275,1728402648301,-151.0,0.00027397,7]
[340052276,1728402648312,-151.0,0.00027397,7]
[340052277,1728402648321,-163.608933,0.00027397,7]
[340052278,1728402648332,-163.608933,0.00027397,7]
[340052279,1728402648342,-332.643552,0.00027397,7]
[340052280,1728402648353,-707.451329,0.00027397,7]
[340052281,1728402648363,-707.451329,0.00027397,7]
[340052282,1728402648374,-200.0,0.00027397,60]
[340052283,1728402648384,-151.0,0.00027397,7]
[340052284,1728402648394,-151.0,0.00027397,7]
[340052285,1728402648404,-151.0,0.00027397,7]
[340052286,1728402648414,-156.49769,0.00027397,7]
[340052287,1728402648424,-151.0,0.00027397,7]
[340052288,1728402648434,-151.0,0.00027397,7]
[340052289,1728402648444,-151.0,0.00027397,7]
[340052290,1728402648454,-332.9,0.00027397,10]
[340052291,1728402648464,-1143.820271,0.0002746,7]
[340052292,1728402648474,-1143.820271,0.0002746,7]
[340052293,1728402648484,-151.0,0.0002746,7]
[340052294,1728402648494,-151.0,0.0002746,7]
[340052295,1728402648504,-151.0,0.0002746,7]
[340052296,1728402648515,-233.972296,0.0002746,7]
[340052297,1728402648525,-233.972296,0.0002746,7]
[340052298,1728402648535,-256.511464,0.0002746,7]
[340052299,1728402648546,-256.511464,0.0002746,7]
[340052300,1728402648556,-8383.07715684,0.000275,2]
[340052301,1728402648566,-152.0,0.00027881,6]
[340052302,1728402648577,-1004.9,0.0002792,2]
[340052303,1728402648587,-153.47,0.00027945,2]
[340052304,1728402648597,-300.0,0.00028,120]
[340052305,1728402648609,-423.71,0.00028403,2]
[340052306,1728402648619,-423.71,0.00028403,2]
[340052307,1728402648629,-423.71,0.00028403,2]
[340052308,1728402648640,-423.71,0.00028403,2]
[340052309,1728402648649,-423.71,0.00028403,2]
[340052310,1728402648660,-735.89,0.00028672,2]
[340052311,1728402648671,-152.0,0.00029182,7]
[340052312,1728402648681,-209.0,0.0002921,30]
[340052313,1728402648691,-329.64,0.00029351,2]
[340052314,1728402648701,-329.64,0.00029351,2]
[340052315,1728402648710,-329.64,0.00029351,2]
[340052316,1728402648720,-329.64,0.00029351,2]
[340052317,1728402648730,-329.64,0.00029351,2]
[340052318,1728402648740,-329.64,0.00029351,2]
[340052319,1728402648749,-329.64,0.00029351,2]
[340052320,1728402648759,-329.64,0.00029351,2]
[340052321,1728402648769,-329.64,0.00029351,2]
[340052322,1728402648779,-329.64,0.00029351,2]
[340052323,1728402648790,-1004.9,0.0002956,2]
[340052324,1728402648800,-440798.6153323,0.0002988,10]
[340052325,1728402648810,-221.17,0.00029889,30]
[340052326,1728402648820,-250.52307972,0.000299,2]
[340052327,1728402648836,-429.16,0.0002991,2]
[340052328,1728402648846,-429.16,0.0002991,2]
[340052329,1728402648858,-429.16,0.0002991,2]
[340052330,1728402648867,-429.16,0.0002991,2]
[340052331,1728402648877,-429.16,0.0002991,2]
[340052332,1728402648887,-883.65,0.0002991,2]
[340052333,1728402648901,-3327.44638991,0.00029922,15]
[340052334,1728402648912,-5675.0252885,0.00029979,2]
[340052335,1728402648922,-2435.3438452,0.00029979,2]
[340052336,1728402648932,-21916.62238167,0.0003,10]
[340052337,1728402648942,-398849.0,0.0003,2]
[340052338,1728402648953,-892.28435034,0.0003,120]
[340052339,1728402648962,-300.0,0.0003,120]
[340052340,1728402648972,-152.419457,0.0003,7]
[340052341,1728402648982,-927.818187,0.0003,7]
[340052342,1728402648991,-927.818187,0.0003,7]
[340052343,1728402649001,-151.0,0.0003,7]
[340052344,1728402649011,-152.266348,0.0003,7]
[340052345,1728402649020,-151.0,0.0003,7]
[340052346,1728402649031,-151.0,0.0003,7]
[340052347,1728402649042,-279.415384,0.0003,7]
[340052348,1728402649052,-151.0,0.0003,7]
[340052349,1728402649063,-254.214006,0.0003,7]
[340052350,1728402649073,-254.214006,0.0003,7]
[340052351,1728402649082,-151.0,0.0003,7]
[340052352,1728402649096,-496.188665,0.0003,7]
[340052353,1728402649107,-496.188665,0.0003,7]
[340052354,1728402649121,-151.0,0.0003,7]
[340052355,1728402649131,-163.629079,0.0003,7]
[340052356,1728402649142,-163.629079,0.0003,7]
[340052357,1728402649152,-151.0,0.0003,7]
[340052358,1728402649163,-151.0,0.0003,7]
[340052359,1728402649173,-151.0,0.0003,7]
[340052360,1728402649184,-256.360693,0.0003,7]
[340052361,1728402649196,-256.360693,0.0003,7]
[340052362,1728402649206,-341.224694,0.0003,7]
[340052363,1728402649217,-153.576801,0.0003,7]
[340052364,1728402649227,-341.224694,0.0003,7]
[340052365,1728402649238,-151.0,0.0003,7]
[340052366,1728402649248,-296.759233,0.0003,7]
[340052367,1728402649259,-151.0,0.0003,7]
[340052368,1728402649270,-1143.820271,0.0003,7]
[340052369,1728402649280,-1143.820271,0.0003,7]
[340052370,1728402649290,-152.777725,0.0003,7]
[340052371,1728402649300,-151.0,0.0003,7]
[340052372,1728402649311,-214.062633,0.0003,7]
[340052373,1728402649321,-151.0,0.0003,7]
[340052374,1728402649330,-282.931261,0.0003,7]
[340052375,1728402649340,-233.972296,0.0003,7]
[340052376,1728402649350,-233.972296,0.0003,7]
[340052377,1728402649362,-151.0,0.0003,7]
[340052378,1728402649371,-263.34538,0.0003,7]
[340052379,1728402649382,-263.34538,0.0003,7]
[340052380,1728402649393,-256.511464,0.0003,7]
[340052381,1728402649403,-383.646035,0.0003,7]
[340052382,1728402649414,-256.511464,0.0003,7]
[340052383,1728402649424,-383.646035,0.0003,7]
[340052384,1728402649434,-151.0,0.0003,7]
[340052385,1728402649445,-152.923802,0.0003,7]
[340052386,1728402649456,-340.836957,0.0003,7]
[340052387,1728402649467,-340.836957,0.0003,7]
[340052388,1728402649476,-151.0,0.0003,7]
[340052389,1728402649486,-151.0,0.0003,7]
[340052390,1728402649497,-151.0,0.0003,7]
[340052391,1728402649507,-151.0,0.0003,7]
[340052392,1728402649517,-151.0,0.0003,7]
[340052393,1728402649528,-248.015446,0.0003,7]
[340052394,1728402649538,-163.608933,0.0003,7]
[340052395,1728402649548,-163.608933,0.0003,7]
[340052396,1728402649558,-332.643552,0.0003,7]
[340052397,1728402649568,-151.0,0.0003,7]
[340052398,1728402649579,-221.866488,0.0003,7]
[340052399,1728402649589,-151.0,0.0003,7]
[340052400,1728402649599,-221.866488,0.0003,7]
[340052401,1728402649610,-707.451329,0.0003,7]
[340052402,1728402649620,-707.451329,0.0003,7]
[340052403,1728402649631,-151.0,0.0003,7]
[340052404,1728402649641,-151.0,0.0003,7]
[340052405,1728402649651,-151.0,0.0003,7]
[340052406,1728402649662,-151.0,0.0003,7]
[340052407,1728402649672,-151.0,0.0003,7]
[340052408,1728402649682,-151.0,0.0003,7]
[340052409,1728402649692,-151.0,0.0003,7]
[340052410,1728402649702,-151.0,0.0003,7]
[340052411,1728402649713,-151.0,0.0003,7]
[340052412,1728402649723,-151.0,0.0003,7]
[340052413,1728402649733,-151.0,0.0003,7]
[340052414,1728402649743,-151.0,0.0003,7]
[340052415,1728402649753,-491.420714,0.0003,7]
[340052416,1728402649764,-491.420714,0.0003,7]
[340052417,1728402649774,-1574.273559,0.0003,7]
[340052418,1728402649784,-1574.273559,0.0003,7]
[340052419,1728402649796,-151.0,0.0003,7]
[340052420,1728402649805,-1057.013317,0.0003,7]
[340052421,1728402649815,-1057.013317,0.0003,7]
[340052422,1728402649826,-151.0,0.0003,7]
[340052423,1728402649836,-151.0,0.0003,7]
[340052424,1728402649846,-151.0,0.0003,7]
[340052425,1728402649856,-151.0,0.0003,7]
[340052426,1728402649866,-151.0,0.0003,7]
[340052427,1728402649876,-151.0,0.0003,7]
[340052428,1728402649887,-151.0,0.0003,7]
[340052429,1728402649897,-151.0,0.0003,7]
[340052430,1728402649908,-295.224133,0.0003,7]
[340052431,1728402649918,-151.0,0.0003,7]
[340052432,1728402649927,-151.0,0.0003,7]
[340052433,1728402649937,-151.0,0.0003,7]
[340052434,1728402649947,-214.40180184,0.00030067,2]
[340052435,1728402649957,-750.0,0.00030136,2]
[340052436,1728402649967,-201.92477497,0.00030137,60]
[340052437,1728402649977,-1500.0,0.00030137,40]
[340052438,1728402649987,-500.0,0.00030137,30]
[340052439,1728402649997,-203.0,0.0003029,30]
[340052440,1728402650007,-209.0,0.0003029,30]
[340052441,1728402650018,-152.0,0.00030482,8]
[340052442,1728402650029,-160.13,0.00030858,2]
[340052443,1728402650039,-735.89,0.00030936,2]
[340052444,1728402650049,-1004.9,0.000312,2]
[340052445,1728402650059,-150.0,0.000313,15]
[340052446,1728402650069,-203.0,0.0003138,30]
[340052447,1728402650168,-209.0,0.0003138,30]
[340052448,1728402650178,-18497.48956064,0.0003143,4]
[340052449,1728402650191,-1002.85464583,0.00031467,3]
[340052450,1728402650203,-153.47,0.00031781,2]
[340052451,1728402650214,-152.0,0.00031783,9]
[340052452,1728402650224,-216.79273915,0.000319,30]
[340052453,1728402650234,-500.0,0.00032,10]
[340052454,1728402650246,-2765.73966782,0.00032,30]
[340052455,1728402650256,-500.0,0.00032,120]
[340052456,1728402650266,-39920.7281001,0.00032379,2]
[340052457,1728402650276,-927.818187,0.00032424,7]
[340052458,1728402650285,-927.818187,0.00032424,7]
[340052459,1728402650295,-151.0,0.00032424,7]
[340052460,1728402650305,-151.0,0.00032424,7]
[340052461,1728402650315,-151.0,0.00032424,7]
[340052462,1728402650325,-151.0,0.00032424,7]
[340052463,1728402650334,-254.214006,0.00032424,7]
[340052464,1728402650344,-254.214006,0.00032424,7]
[340052465,1728402650354,-151.0,0.00032424,7]
[340052466,1728402650364,-496.188665,0.00032424,7]
[340052467,1728402650374,-496.188665,0.00032424,7]
[340052468,1728402650383,-151.0,0.00032424,7]
[340052469,1728402650393,-163.629079,0.00032424,7]
[340052470,1728402650402,-163.629079,0.00032424,7]
[340052471,1728402650412,-151.0,0.00032424,7]
[340052472,1728402650421,-151.0,0.00032424,7]
[340052473,1728402650430,-151.0,0.00032424,7]
[340052474,1728402650439,-256.360693,0.00032424,7]
[340052475,1728402650448,-256.360693,0.00032424,7]
[340052476,1728402650458,-341.224694,0.00032424,7]
[340052477,1728402650468,-341.224694,0.00032424,7]
[340052478,1728402650477,-151.0,0.00032424,7]
[340052479,1728402650487,-296.759233,0.00032424,7]
[340052480,1728402650497,-150.0,0.00032431,4]
[340052481,1728402650506,-203.0,0.0003245,30]
[340052482,1728402650517,-226.0,0.0003245,30]
[340052483,1728402650527,-202.0,0.0003245,30]
[340052484,1728402650536,-209.0,0.0003245,30]
[340052485,1728402650546,-151.0,0.00032467,7]
[340052486,1728402650555,-1143.820271,0.00032467,7]
[340052487,1728402650565,-1143.820271,0.00032467,7]
[340052488,1728402650575,-151.0,0.00032467,7]
[340052489,1728402650584,-151.0,0.00032467,7]
[340052490,1728402650594,-233.972296,0.00032467,7]
[340052491,1728402650604,-233.972296,0.00032467,7]
[340052492,1728402650614,-151.0,0.00032467,7]
[340052493,1728402650624,-263.34538,0.00032467,7]
[340052494,1728402650633,-263.34538,0.00032467,7]
[340052495,1728402650644,-256.511464,0.00032467,7]
[340052496,1728402650653,-383.646035,0.00032467,7]
[340052497,1728402650663,-256.511464,0.00032467,7]
[340052498,1728402650673,-383.646035,0.00032467,7]
[340052499,1728402650683,-151.0,0.00032467,7]
[340052500,1728402650693,-340.836957,0.00032467,7]
[340052501,1728402650703,-340.836957,0.00032467,7]
[340052502,1728402650714,-151.0,0.00032467,7]
[340052503,1728402650724,-151.0,0.00032467,7]
[340052504,1728402650733,-151.0,0.00032467,7]
[340052505,1728402650742,-2000.0,0.00032467,120]
[340052506,1728402650754,-511.169372,0.00032467,120]
[340052507,1728402650765,-511.321807,0.00032467,120]
[340052508,1728402650774,-203.966489,0.00032467,120]
[340052509,1728402650785,-1088.0,0.00032471,15]
[340052510,1728402650796,-150.0,0.00032471,2]
[340052511,1728402650806,-155.0,0.00032471,120]
[340052512,1728402650817,-167.73645877,0.00032471,120]
[340052513,1728402650827,-4109.5321082,0.00032471,2]
[340052514,1728402650838,-199.86286896,0.00032471,120]
[340052515,1728402650848,-10411.81663405,0.00032471,30]
[340052516,1728402650859,-1146.44889346,0.00032471,30]
[340052517,1728402650878,-412946.51758594,0.00032471,30]
[340052518,1728402650888,-1011.72243539,0.00032471,120]
[340052519,1728402650898,-639.90986318,0.00032471,3]
[340052520,1728402650908,-557.33351559,0.00032471,2]
[340052521,1728402650918,-1852.25315179,0.00032471,2]
[340052522,1728402650928,-196.0,0.00032471,30]
[340052523,1728402650937,-477.6353,0.00032471,30]
[340052524,1728402650947,-3743.0,0.00032471,120]
[340052525,1728402650955,-7778.57013426,0.00032471,120]
[340052526,1728402650965,-3620.38068943,0.00032471,120]
[340052527,1728402650974,-860.0,0.00032471,30]
[340052528,1728402650983,-1000.0,0.00032471,2]
[340052529,1728402650992,-1000.0,0.00032471,4]
[340052530,1728402651002,-191.32378999,0.00032471,6]
[340052531,1728402651011,-151.0,0.00032471,7]
[340052532,1728402651020,-151.0,0.00032471,7]
[340052533,1728402651029,-163.608933,0.00032471,7]
[340052534,1728402651040,-163.608933,0.00032471,7]
[340052535,1728402651050,-332.643552,0.00032471,7]
[340052536,1728402651059,-332.643552,0.00032471,7]
[340052537,1728402651068,-151.0,0.00032471,7]
[340052538,1728402651078,-221.866488,0.00032471,7]
[340052539,1728402651088,-151.0,0.00032471,7]
[340052540,1728402651098,-221.866488,0.00032471,7]
[340052541,1728402651108,-707.451329,0.00032471,7]
[340052542,1728402651121,-707.451329,0.00032471,7]
[340052543,1728402651130,-151.0,0.00032471,7]
[340052544,1728402651140,-151.0,0.00032471,7]
[340052545,1728402651150,-169.7094,0.00032471,7]
[340052546,1728402651161,-151.0,0.00032471,7]
[340052547,1728402651170,-151.0,0.00032471,7]
[340052548,1728402651180,-151.0,0.00032471,7]
[340052549,1728402651190,-151.0,0.00032471,7]
[340052550,1728402651199,-166.960224,0.00032471,7]
[340052551,1728402651209,-151.0,0.00032471,7]
[340052552,1728402651218,-151.0,0.00032471,7]
[340052553,1728402651227,-151.0,0.00032471,7]
[340052554,1728402651237,-151.0,0.00032471,7]
[340052555,1728402651247,-491.420714,0.00032471,7]
[340052556,1728402651257,-491.420714,0.00032471,7]
[340052557,1728402651267,-1574.273559,0.00032471,7]
[340052558,1728402651276,-1574.273559,0.00032471,7]
[340052559,1728402651286,-151.0,0.00032471,7]
[340052560,1728402651295,-1057.013317,0.00032471,7]
[340052561,1728402651307,-1057.013317,0.00032471,7]
[340052562,1728402651316,-151.0,0.00032471,7]
[340052563,1728402651325,-151.0,0.00032471,7]
[340052564,1728402651335,-151.0,0.00032471,7]
[340052565,1728402651345,-154.211571,0.00032471,7]
[340052566,1728402651354,-151.0,0.00032471,7]
[340052567,1728402651367,-151.0,0.00032471,7]
[340052568,1728402651376,-151.0,0.00032471,7]
[340052569,1728402651387,-215.426664,0.00032471,7]
[340052570,1728402651398,-151.0,0.00032471,7]
[340052571,1728402651407,-151.0,0.00032471,7]
[340052572,1728402651417,-151.0,0.00032471,7]
[340052573,1728402651427,-151.0,0.00032471,7]
[340052574,1728402651438,-221.17,0.00032473,120]
[340052575,1728402651448,-164.931338,0.000325,30]
[340052576,1728402651458,-4564.99437827,0.000328,2]
[340052577,1728402651468,-1004.9,0.0003284,2]
[340052578,1728402651477,-1125.0,0.00032876,2]
[340052579,1728402651487,-4000.0,0.00032877,28]
[340052580,1728402651497,-1320.83,0.00032877,28]
[340052581,1728402651507,-324.46,0.00032877,2]
[340052582,1728402651516,-19299.47,0.00032877,2]
[340052583,1728402651527,-500.0,0.00032877,30]
[340052584,1728402651537,-500.0,0.00032877,120]
[340052585,1728402651546,-250.37680956,0.000329,2]
[340052586,1728402651556,-1127.76397085,0.000329,2]
[340052587,1728402651567,-2501.0,0.000329,2]
[340052588,1728402651577,-501.361018,0.00033,14]
[340052589,1728402651587,-150.0,0.00033005,120]
[340052590,1728402651598,-152.0,0.00033084,10]
[340052591,1728402651609,-2000.0,0.00033107,120]
[340052592,1728402651618,-800.63,0.00033151,120]
[340052593,1728402651628,-735.89,0.000332,2]
[340052594,1728402651637,-150.0,0.0003342,10]
[340052595,1728402651648,-2000.0,0.00033746,120]
[340052596,1728402651658,-1000.0,0.00034,14]
[340052597,1728402651667,-500.0,0.00034,120]
[340052598,1728402651677,-152.0,0.00034385,11]
[340052599,1728402651686,-157.80170686,0.00034385,5]
[340052600,1728402651695,-2000.0,0.00034386,120]
[340052601,1728402651704,-1004.9,0.0003448,2]
[340052602,1728402651714,-150.0,0.00034548,10]
[340052603,1728402651723,-3327.44638991,0.00034678,15]
[340052604,1728402651733,-844.89818438,0.000349,120]
[340052605,1728402651743,-50000.0,0.00035,25]
[340052606,1728402651752,-150.0,0.00035,2]
[340052607,1728402651762,-500.7353479,0.00035,30]
[340052608,1728402651773,-2000.0,0.00035026,120]
[340052609,1728402651783,-221.17,0.00035057,120]
[340052610,1728402651792,-735.89,0.00035464,2]
[340052611,1728402651802,-3000.0,0.000356,2]
[340052612,1728402651811,-500.0,0.00035616,30]
[340052613,1728402651821,-500.0,0.00035616,120]
[340052614,1728402651831,-1500.0,0.00035616,2]
[340052615,1728402651840,-153.47,0.00035616,120]
[340052616,1728402651850,-488.97,0.0003563,2]
[340052617,1728402651859,-150.74,0.0003563,2]
[340052618,1728402651907,-346.59,0.0003563,2]
[340052619,1728402651917,-407.28,0.0003563,2]
[340052620,1728402651926,-152.98,0.0003563,2]
[340052621,1728402651936,-429.16,0.0003563,2]
[340052622,1728402651945,-150.0,0.0003563,2]
[340052623,1728402651955,-358.83,0.0003563,2]
[340052624,1728402651965,-358.83,0.0003563,2]
[340052625,1728402651975,-150.0,0.0003563,2]
[340052626,1728402651993,-429.16,0.0003563,2]
[340052627,1728402652002,-358.83,0.0003563,2]
[340052628,1728402652011,-429.16,0.0003563,2]